Workbook

Sheet 1
C2: .
E98: 1048530
E99: 25112013
A100: ф000001
C101: Бухгалтерский Баланс за 2011г
E102: Форма №1 по ОКУД
E103: Дата (год, месяц, число) | F103: 31.12.12
C104: Организация ОАО"ZZ" | E104: по ОКПО
C105: Идентификационный номер налогоплательщика | E105: ИНН | F105: 7707082177
C106: Вид деятельности | E106: по ОКДП | F106: 22.21
C107: Организационно-правовая форма / форма собственности
E108: по ОКОПФ / ОКФС | F108: 2.9375
C109: Единица измерения тыс.руб | E109: по ОКЕИ | F109: 384
C110: АКТИВ | D110: Код строки | E110: 31.12.2011 | F110: 31.12.2010
C111: 2 | D111: 3 | E111: 4 | F111: 5
C112: 1.ВНЕОБОРОТНЫЕ АКТИВЫ
C113: Нематериальные активы | D113: 1110 | E113: =E114 -> 73 | F113: =F114 -> 121
C114: в т.ч.Нематериальные активы в организации | D114: 11101 | E114: 73 | F114: 121
C115: Основные средства | D115: 1130 | E115: =SUM(E116:E117) -> 90951 | F115: =SUM(F116:F117) -> 100023
C116: в т.ч.Основные средства в организации | D116: 11301 | E116: 89980 | F116: 100023
C117: в т.ч.Оборудование к установке | D117: 11302 | E117: 971
C118: Финансовые вложения | D118: 1150 | E118: 35860 | F118: 35860
C119: Отложенные налоговые активы | D119: 1160 | E119: 7832 | F119: 2959
C120: Прочие внеоборотные активы | D120: 1170
C121: Итого по разделу I (внеоборотные активы) | D121: 1100 | E121: =SUM(E113,E115,E118:E120) -> 134716 | F121: =SUM(F113,F115,F118:F120) -> 138963
C122: II.ОБОРОТНЫЕ АКТИВЫ
C123: Запасы | D123: 1210 | E123: =SUM(E124:E127) -> 63112 | F123: =SUM(F124:F127) -> 56389
C124: в т.ч. Материалы | D124: 12101 | E124: 5807 | F124: 7516
C125: в т.ч.Товары | D125: 12104 | E125: 16127 | F125: 12874
C126: в т.ч.Готовая продукция | D126: 12105 | E126: 38293 | F126: 31420
C127: в т.ч.Основное производство | D127: 12108 | E127: 2885 | F127: 4579
C128: Налог на добавленную стоимость по приобретенным ценностям | D128: 1220 | E128: 150 | F128: 150
C129: Дебиторская задолженность (платежи ож. более чем 12 мес. после отчет. даты) | D129: 1230 | E129: =SUM(E130:E134) -> 32040 | F129: =SUM(F130:F134) -> 18493
C130: в т.ч. покупатели и заказчики (62, 76, 63) | D130: 12301 | E130: 699 | F130: 363
C131: в т.ч. Векселя к получению (62, 76) | D131: 12302 | E131: 31341 | F131: 18130
C132: в.ч. Задолженность дочерних и зависимых обществ (58, 60, 62, 75, 76) | D132: 12303
C133: в т.ч. Авансы выданные (60) | D133: 12304
C134: в т.ч. Прочие дебиторы | D134: 12305
C135: Дебиторская задолженность (платежи ож. в течение 12 месяцев после отч. даты) | D135: 1231 | E135: =SUM(E136:E141) -> 64011 | F135: =SUM(F136:F141) -> 55968
C136: в т.ч. покупатели и заказчики (62, 76, 63) | D136: 12310
C137: в т.ч. векселя к получению (62, 76) | D137: 12311 | E137: 12709 | F137: 8208
C138: в т.ч. задолженность дочерних и зависимых обществ (58, 60, 62, 75, 76) | D138: 12312 | E138: 42585 | F138: 39651
C139: в т.ч. задолженность участников (учредителей) по взносам в уст.капитал (75) | D139: 12313 | E139: 8514 | F139: 7465
C140: в т.ч. авансы выданные (60) | D140: 12314 | E140: 203 | F140: 354
C141: прочие дебиторы | D141: 12315 | F141: 290
C142: Финансовые вложения (за исключением денежных эквивалентов) | D142: 1240 | E142: =SUM(E143:E145) -> 19709 | F142: =SUM(F143:F145) -> 9709
C143: в т.ч.Долговые ценные бумаги | D143: 12402 | E143: 330 | F143: 330
C144: в т.ч.Предоставленные займы | D144: 12403 | E144: 9379 | F144: 9379
C145: в т.ч.Депозитные счета | D145: 12406 | E145: 10000
C146: Денежные средства и денежные эквиваленты | D146: 1250 | E146: =SUM(E147:E149) -> 14249 | F146: =SUM(F147:F149) -> 13826
C147: в т.ч.Касса организации | D147: 12501 | E147: 117 | F147: 471
C148: в т.ч.Расчетные счета | D148: 12504 | E148: 13836 | F148: 13075
C149: в т.ч.Валютные счета | D149: 12505 | E149: 296 | F149: 280
C150: Прочие оборотные активы | D150: 1260 | E150: =SUM(E151:E154) -> 11218 | F150: =SUM(F151:F154) -> 65147
C151: в т.ч.Денежные документы | D151: 12602 | E151: 99
C152: в т.ч.НДС по авансам и переплатам | D152: 12604 | E152: 8737 | F152: 5702
C153: в т.ч.Расходы будущих периодов | D153: 12605 | E153: 1180 | F153: 58081
C154: в т.ч.Недостачи и потери от порчи ценностей | D154: 12606 | E154: 1202 | F154: 1364
C155: Итого по разделу II (оборотные активы) | D155: 1200 | E155: =SUM(E150,E146,E142,E135,E129,E128,E123) -> 204489 | F155: =SUM(F150,F146,F142,F135,F129,F128,F123) -> 219682
C156: БАЛАНС (актив) | D156: 1600 | E156: =SUM(E155,E121) -> 339205 | F156: =SUM(F155,F121) -> 358645
C158: ПАССИВ | D158: Код строки | E158: =E110 -> 31.12.2011 | F158: =F110 -> 31.12.2010
C159: 2 | D159: 3 | E159: 4 | F159: 5
C160: III. КАПИТАЛ И РЕЗЕРВЫ
C161: Уставный капитал (80) | D161: 1310 | E161: 1375 | F161: 1375
C162: Непокрытый убыток прошлых лет (84) | D162: 1340 | E162: 111338 | F162: 111338
C163: Добавочный капитал (83) | D163: 1350 | E163: 1547 | F163: 1547
C164: Резервный капитал (82) | D164: 1360 | E164: =SUM(E165) -> 69 | F164: =SUM(F165) -> 69
C165: в т.ч. резервы, образованные в соответствии с законодательством | D165: 13601 | E165: 69 | F165: 69
C166: в т.ч. резервы, образованные в соответствии с учредительными документами
C167: Фонд социальной сферы (84)
C168: Целевые финансирование и поступления (86)
C169: Нераспределенная прибыль прошлых лет (84)
C170: Нераспределенная прибыль отчетного года (84)
C171: Непокрытый убыток отчетного года (84)
C172: Нераспределенная прибыль (непокрытый убыток) | D172: 1370 | E172: 99504 | F172: 91907
C173: Итого по разделу III (Капитал и резервы) | D173: 1300 | E173: =SUM(E161:E164,E167:E172) -> 213833 | F173: =SUM(F161:F164,F167:F172) -> 206236
C174: IV. ДОЛГОСРОЧНЫЕ ОБЯЗАТЕЛЬСТВА
C175: Займы и кредиты (67) | D175: 1410 | E175: =SUM(E176:E178) -> 21767 | F175: =SUM(F176:F178) -> 15607
C176: в т.ч. Кредиты банков более чем через 12 месяцев после отчетной даты | D176: 14101 | E176: 21767 | F176: 15607
C177: в т.ч. Займы, подлежащие погашению более чем через 12 месяцев после отчетной даты | D177: 14102
C178: в т.ч. Прочие долгосрочные обязательства | D178: 14103
C179: Итого по разделу IV (Долгосрочные обязательства) | D179: 1400 | E179: =SUM(E176:E178) -> 21767 | F179: =SUM(F176:F178) -> 15607
C180: V. КРАТКОСРОЧНЫЕ ОБЯЗАТЕЛЬСТВА
C181: Заемные средства | D181: 1510 | E181: =SUM(E182:E183) -> 1183 | F181: =SUM(F182:F183) -> 1921
C182: в т.ч. Кредиты банков, подлежащие погашению в течение 12 месяцев после отчетной даты | D182: 15102 | E182: 848 | F182: 1661
C183: в т.ч. Займы, подлежащие погашению в течение 12 месяцев после отчетной даты | D183: 15105 | E183: 335 | F183: 260
C184: Кредиторская задолженность | D184: 1520 | E184: =SUM(E185:E192) -> 100459 | F184: =SUM(F185:F192) -> 132583
C185: в т.ч. Поставщики и подрядчики (60, 76) | D185: 15201 | E185: 7794 | F185: 12639
C186: в т.ч. Векселя к уплате (60, 76) | D186: 15202 | E186: 61421 | F186: 37911
C187: в т.ч. Задолженность перед дочерними и зависимыми обществами (60, 62, 66, 67, 75, 76) | D187: 15203 | E187: 13198 | F187: 14527
C188: в т.ч. Задолженность перед персоналом организации (70) | D188: 15204 | E188: 2421 | F188: 193
C189: в т.ч. Задолженность перед государственными внебюджетными фондами (69) | D189: 15205 | E189: 9560 | F189: 6993
C190: в т.ч. Задолженность перед бюджетом | D190: 15206 | F190: 2
C191: в т.ч. Авансы полученные (62, 76) | D191: 15207 | E191: 957 | F191: 957
C192: в т.ч. Прочие кредиторы | D192: 15208 | E192: 5108 | F192: 59361
C193: Задолженность участникам (учредителям) по выплате доходов (70, 75) | D193: 1521 | E193: 0 | F193: 0
C194: Доходы будущих периодов (98) | D194: 1530 | E194: 1425 | F194: 500
C195: Резервы предстоящих расходов (96) | D195: 1540 | E195: 0 | F195: 0
C196: Прочие обязательства | D196: 1550 | E196: 1966 | F196: 723
C197: Итого по разделу V (Краткосрочные обязательства) | D197: 1500 | E197: =SUM(E193:E196,E184,E181) -> 105033 | F197: =SUM(F193:F196,F184,F181) -> 135727
C198: БАЛАНС (пассив) | D198: 1700 | E198: =SUM(E197,E179,E173) -> 340633 | F198: =SUM(F197,F179,F173) -> 357570
... 86 more rows
